[Event "Eurasia Open Cup 2019"]
[Site "Ekaterinburg"]
[Date "2019.08.08"]
[Round "8.20"]
[White "Semenova, Elena"]
[Black "Kezin, Roman"]
[Result "0-1"]
[ECO "B47"]
[WhiteElo "2286"]
[BlackElo "2470"]
[Annotator "ChessBase"]
[PlyCount "101"]
[EventDate "2019.07.31"]
[EventType "swiss"]
[EventCountry "RUS"]
[SourceTitle "playchess.com"]
[Source "ChessBase"]
[SourceQuality "1"]
[TimeControl "5400+30"]

1. e4 {[%emt 0:01:13]} c5 {[%emt 0:00:00]} 2. Nf3 {[%emt 0:00:10]} e6 {[%emt 0:02:06]} 3. d4 {[%emt 0:02:14]} cxd4 {[%emt 0:00:06]} 4. Nxd4 {[%emt 0:00:00]} Nc6 {[%emt 0:00:01]} 5. Nc3 {[%emt 0:00:08]} Qc7 {[%emt 0:00:04]} 6. Qd3 {[%emt 0:00:00]} Nf6 {[%emt 0:00:07]} 7. Ndb5 {[%emt 0:00:05]} Qb8 {[%emt 0:00:06]} 8. Qg3 {[%emt 0:00:20]} d6 {[%emt 0:00:05]} 9. Be3 {[%emt 0:00:03]} a6 {[%emt 0:01:52]} 10. Nd4 {[%emt 0:00:06]} Bd7 {[%emt 0:01:21]} 11. Bd3 {[%emt 0:12:35]} b5 {[%emt 0:01:28]} 12. f3 {[%emt 0:06:31]} Nxd4 {[%emt 0:22:05]} 13. Bxd4 {[%emt 0:00:04]} b4 {[%emt 0:00:03]} 14. Ne2 {[%emt 0:02:47]} e5 {[%emt 0:00:26]} 15. Be3 {[%emt 0:08:04]} Be7 {[%emt 0:00:14]} 16. O-O {[%emt 0:06:57]} O-O {[%emt 0:00:09]} 17. Rad1 {[%emt 0:09:49]} Qb7 {[%emt 0:25:40]} 18. Kh1 {[%emt 0:05:47]} Be6 {[%emt 0:00:44]} 19. Rd2 {[%emt 0:04:48]} Rac8 {[%emt 0:00:56]} 20. Rfd1 {[%emt 0:02:47]} a5 {[%emt 0:00:52]} 21. Qe1 {[%emt 0:09:14]} Rfd8 {[%emt 0:13:45]} 22. Ng3 {[%emt 0:01:27]} g6 {[%emt 0:01:40]} 23. Qe2 {[%emt 0:03:16]} Rc7 {[%emt 0:05:09]} 24. Ba6 {[%emt 0:03:27]} Qb8 {[%emt 0:00:55]} 25. Bg5 {[%emt 0:05:09]} Kg7 {[%emt 0:04:18]} 26. Nf1 {[%emt 0:06:20]} Ng8 {[%emt 0:13:32]} 27. Bxe7 {[%emt 0:05:00]} Nxe7 {[%emt 0:00:00]} 28. Rxd6 {[%emt 0:04:09]} Rxd6 {[%emt 0:00:00]} 29. Rxd6 {[%emt 0:00:31]} Rxc2 {[%emt 0:00:55]} 30. Qxc2 {[%emt 0:00:00]} Qxd6 {[%emt 0:00:04]} 31. Bb5 {[%emt 0:00:37]} f5 {[%emt 0:04:19]} 32. Ba4 {[%emt 0:00:47]} fxe4 {[%emt 0:01:43]} 33. fxe4 {[%emt 0:00:24]} Bc8 {[%emt 0:00:00]} 34. Nd2 {[%emt 0:00:53]} Bb7 {[%emt 0:00:00]} 35. h3 {[%emt 0:00:36]} Ng8 {[%emt 0:00:41]} 36. Nb3 {[%emt 0:00:38]} Nf6 {[%emt 0:00:19]} 37. Nc5 {[%emt 0:00:16]} Bc8 {[%emt 0:00:27]} 38. Bb3 {[%emt 0:00:58]} Qd4 {[%emt 0:00:52]} 39. Nd3 {[%emt 0:00:18]} Ba6 {[%emt 0:01:22]} 40. Qc7+ {[%emt 0:00:51]} Qd7 {[%emt 0:00:06]} 41. Qxd7+ {[%emt 0:00:00]} Nxd7 {[%emt 0:00:01]} 42. Nf2 {[%emt 0:00:12]} Nc5 {[%emt 0:00:44]} 43. Bc2 {[%emt 0:00:26]} a4 {[%emt 0:01:07]} 44. a3 {[%emt 0:01:19]} b3 {[%emt 0:00:46]} 45. Bb1 {[%emt 0:00:10]} Kf6 {[%emt 0:00:00]} 46. Kh2 {[%emt 0:00:08]} Be2 {[%emt 0:00:35]} 47. g4 {[%emt 0:01:20]} h6 {[%emt 0:00:53]} 48. Kg3 {[%emt 0:00:00]} Ke6 {[%emt 0:00:15]} 49. Kg2 {[%emt 0:00:30]} Kd6 {[%emt 0:00:12]} 50. h4 {[%emt 0:00:32]} Kc6 {[%emt 0:00:00]} 51. g5 {[%emt 0:01:03]} 0-1

[Event "Eurasia Open Cup 2019"]
[Site "Ekaterinburg"]
[Date "2019.08.08"]
[Round "8.21"]
[White "Mamatov, Melis"]
[Black "Ulybin, Mikhail"]
[Result "0-1"]
[ECO "C06"]
[WhiteElo "2269"]
[BlackElo "2469"]
[Annotator "ChessBase"]
[PlyCount "92"]
[EventDate "2019.07.31"]
[EventType "swiss"]
[EventCountry "RUS"]
[SourceTitle "playchess.com"]
[Source "ChessBase"]
[SourceQuality "1"]
[TimeControl "5400+30"]

1. e4 {[%emt 0:00:00]} e6 {[%emt 0:10:28]} 2. d4 {[%emt 0:00:00]} d5 {[%emt 0:00:41]} 3. Nd2 {[%emt 0:00:00]} Nf6 {[%emt 0:00:56]} 4. e5 {[%emt 0:00:15]} Nfd7 {[%emt 0:00:45]} 5. Bd3 {[%emt 0:00:00]} c5 {[%emt 0:00:45]} 6. c3 {[%emt 0:00:00]} Nc6 {[%emt 0:01:00]} 7. Ngf3 {[%emt 0:00:00]} a6 {[%emt 0:04:27]} 8. O-O {[%emt 0:04:54]} g5 {[%emt 0:02:55]} 9. dxc5 {[%emt 0:11:16]} g4 {[%emt 0:02:28]} 10. Nd4 {[%emt 0:00:59]} Ndxe5 {[%emt 0:04:34]} 11. N2b3 {[%emt 0:02:20]} Nxd3 {[%emt 0:02:32]} 12. Qxd3 {[%emt 0:00:19]} e5 {[%emt 0:00:54]} 13. Re1 {[%emt 0:01:29]} Bg7 {[%emt 0:16:14]} 14. Bf4 {[%emt 0:19:06]} f6 {[%emt 0:04:12]} 15. Nf5 {[%emt 0:04:39]} Bxf5 {[%emt 0:01:55]} 16. Qxf5 {[%emt 0:00:02]} O-O {[%emt 0:00:53]} 17. Bg3 {[%emt 0:03:16]} Qc8 {[%emt 0:01:45]} 18. Qh5 {[%emt 0:03:01]} f5 {[%emt 0:09:36]} 19. Rad1 {[%emt 0:03:31]} f4 {[%emt 0:19:34]} 20. Bh4 {[%emt 0:07:31]} Qe6 {[%emt 0:01:39]} 21. c4 {[%emt 0:01:50]} dxc4 {[%emt 0:00:49]} 22. Rd6 {[%emt 0:02:46]} Qf7 {[%emt 0:09:35]} 23. Qxf7+ {[%emt 0:02:28]} Rxf7 {[%emt 0:00:10]} 24. Nd2 {[%emt 0:01:04]} Bf8 {[%emt 0:01:31]} 25. Rd5 {[%emt 0:01:30]} Nb4 {[%emt 0:00:00]} 26. Rdxe5 {[%emt 0:00:24]} Nd3 {[%emt 0:00:43]} 27. Re8 {[%emt 0:05:59]} Nxe1 {[%emt 0:00:41]} 28. Rxa8 {[%emt 0:00:41]} Rd7 {[%emt 0:00:00]} 29. Kf1 {[%emt 0:06:45]} f3 {[%emt 0:00:51]} 30. gxf3 {[%emt 0:09:28]} Nxf3 {[%emt 0:00:40]} 31. Nxf3 {[%emt 0:00:30]} gxf3 {[%emt 0:00:39]} 32. Ke1 {[%emt 0:05:15]} Kf7 {[%emt 0:00:00]} 33. Rc8 {[%emt 0:01:11]} c3 {[%emt 0:00:48]} 34. bxc3 {[%emt 0:00:00]} Bg7 {[%emt 0:00:34]} 35. Rd8 {[%emt 0:00:36]} Bxc3+ {[%emt 0:00:47]} 36. Kf1 {[%emt 0:00:00]} Rxd8 {[%emt 0:00:17]} 37. Bxd8 {[%emt 0:00:00]} Ke6 {[%emt 0:00:00]} 38. h3 {[%emt 0:00:53]} Kd5 {[%emt 0:00:22]} 39. Be7 {[%emt 0:01:34]} Bd4 {[%emt 0:01:13]} 40. Ke1 {[%emt 0:02:11]} Bxc5 {[%emt 0:00:43]} 41. Bh4 {[%emt 0:00:00]} Kc4 {[%emt 0:00:46]} 42. Kd2 {[%emt 0:00:02]} b5 {[%emt 0:00:00]} 43. Bg3 {[%emt 0:00:28]} a5 {[%emt 0:00:17]} 44. Kc2 {[%emt 0:00:18]} a4 {[%emt 0:00:20]} 45. Bh4 {[%emt 0:00:19]} b4 {[%emt 0:00:30]} 46. Bg3 {[%emt 0:00:23]} Bd4 {[%emt 0:00:27]} 0-1

[Event "Eurasia Open Cup 2019"]
[Site "Ekaterinburg"]
[Date "2019.08.08"]
[Round "8.22"]
[White "Kozionov, Kirill"]
[Black "Ovchinnikov, Vsevolod"]
[Result "1-0"]
[ECO "E63"]
[WhiteElo "2454"]
[BlackElo "2346"]
[Annotator "ChessBase"]
[PlyCount "83"]
[EventDate "2019.07.31"]
[EventType "swiss"]
[EventCountry "RUS"]
[SourceTitle "playchess.com"]
[Source "ChessBase"]
[SourceQuality "1"]
[TimeControl "5400+30"]

1. d4 {[%emt 0:00:00]} Nf6 {[%emt 0:00:00]} 2. c4 {[%emt 0:00:00]} g6 {[%emt 0:00:00]} 3. g3 {[%emt 0:00:05]} Bg7 {[%emt 0:00:00]} 4. Bg2 {[%emt 0:00:00]} O-O {[%emt 0:00:52]} 5. Nf3 {[%emt 0:00:00]} d6 {[%emt 0:00:00]} 6. O-O {[%emt 0:01:32]} Nc6 {[%emt 0:00:22]} 7. Nc3 {[%emt 0:00:31]} a6 {[%emt 0:00:00]} 8. b3 {[%emt 0:04:45]} Rb8 {[%emt 0:01:18]} 9. d5 {[%emt 0:00:32]} Na5 {[%emt 0:11:16]} 10. Bg5 {[%emt 0:00:46]} c5 {[%emt 0:02:54]} 11. dxc6 {[%emt 0:00:00]} bxc6 {[%emt 0:01:35]} 12. Qd2 {[%emt 0:05:35]} c5 {[%emt 0:11:21]} 13. Bh6 {[%emt 0:08:50]} Bb7 {[%emt 0:01:01]} 14. Bxg7 {[%emt 0:21:46]} Kxg7 {[%emt 0:00:30]} 15. Ne1 {[%emt 0:00:27]} Qb6 {[%emt 0:06:18]} 16. Rd1 {[%emt 0:07:15]} Nc6 {[%emt 0:17:20]} 17. Nc2 {[%emt 0:01:59]} Nb4 {[%emt 0:03:31]} 18. e4 {[%emt 0:01:23]} Qa5 {[%emt 0:08:30]} 19. Nxb4 {[%emt 0:07:10]} cxb4 {[%emt 0:08:46]} 20. Nd5 {[%emt 0:00:39]} Bxd5 {[%emt 0:00:31]} 21. exd5 {[%emt 0:00:00]} Qc5 {[%emt 0:03:28]} 22. Rde1 {[%emt 0:02:10]} Rb7 {[%emt 0:00:06]} 23. Re2 {[%emt 0:01:47]} Ra8 {[%emt 0:06:00]} 24. Rfe1 {[%emt 0:00:50]} Raa7 {[%emt 0:00:02]} 25. h4 {[%emt 0:02:58]} h5 {[%emt 0:04:46]} 26. Bh3 {[%emt 0:00:38]} a5 {[%emt 0:02:35]} 27. Kg2 {[%emt 0:00:05]} a4 {[%emt 0:00:26]} 28. f3 {[%emt 0:01:51]} axb3 {[%emt 0:00:32]} 29. axb3 {[%emt 0:00:04]} Rc7 {[%emt 0:01:52]} 30. g4 {[%emt 0:01:11]} hxg4 {[%emt 0:02:25]} 31. fxg4 {[%emt 0:00:31]} Nd7 {[%emt 0:02:18]} 32. Qf4 {[%emt 0:04:40]} Ne5 {[%emt 0:00:01]} 33. Rf1 {[%emt 0:04:59]} Rc8 {[%emt 0:00:25]} 34. Rxe5 {[%emt 0:00:12]} Ra2+ {[%emt 0:04:27]} 35. Kh1 {[%emt 0:15:06]} dxe5 {[%emt 0:00:02]} 36. Qxf7+ {[%emt 0:00:38]} Kh8 {[%emt 0:00:01]} 37. g5 {[%emt 0:00:08]} Qd4 {[%emt 0:00:01]} 38. Qxg6 {[%emt 0:00:40]} Qxh4 {[%emt 0:01:54]} 39. Qf5 {[%emt 0:01:43]} Rg8 {[%emt 0:00:08]} 40. Qxe5+ {[%emt 0:00:14]} Rg7 {[%emt 0:01:15]} 41. Rf8+ {[%emt 0:00:04]} Kh7 {[%emt 0:00:25]} 42. g6+ {[%emt 0:00:42]} 1-0

[Event "Eurasia Open Cup 2019"]
[Site "Ekaterinburg"]
[Date "2019.08.08"]
[Round "8.23"]
[White "Pranizin, Gennady"]
[Black "Savitskiy, Sergey"]
[Result "0-1"]
[ECO "B24"]
[WhiteElo "2232"]
[BlackElo "2418"]
[Annotator "NA"]
[PlyCount "120"]
[EventDate "2019.07.31"]
[EventType "swiss"]
[EventCountry "RUS"]
[SourceTitle "playchess.com"]
[Source "ChessBase"]
[SourceQuality "1"]
[TimeControl "5400+30"]

1. e4 {[%emt 0:00:00]} c5 {[%emt 0:00:00]} 2. Nc3 {[%emt 0:00:00]} Nc6 {[%emt 0:00:00]} 3. g3 {[%emt 0:01:18]} g6 {[%emt 0:00:00]} 4. Bg2 {[%emt 0:00:06]} Bg7 {[%emt 0:00:00]} 5. Nge2 {[%emt 0:00:09]} e6 {[%emt 0:00:00]} 6. O-O {[%emt 0:00:07]} Nge7 {[%emt 0:00:00]} 7. d3 {[%emt 0:00:06]} O-O {[%emt 0:00:00]} 8. Bg5 {[%emt 0:00:37]} h6 {[%emt 0:02:30]} 9. Be3 {[%emt 0:01:52]} Nd4 {[%emt 0:00:10]} 10. Qd2 {[%emt 0:01:01]} Kh7 {[%emt 0:00:10]} 11. Bxd4 {[%emt 0:15:02]} cxd4 {[%emt 0:01:52]} 12. Nb5 {[%emt 0:01:38]} Qb6 {[%emt 0:04:23]} 13. Qb4 {[%emt 0:06:16]} Nc6 {[%emt 0:00:58]} 14. Qa4 {[%emt 0:00:22]} Qc5 {[%emt 0:07:15]} 15. c3 {[%emt 0:05:49]} dxc3 {[%emt 0:00:40]} 16. Nbxc3 {[%emt 0:01:38]} a6 {[%emt 0:01:15]} 17. Rac1 {[%emt 0:04:41]} b5 {[%emt 0:01:00]} 18. Qd1 {[%emt 0:00:00]} Qb6 {[%emt 0:00:22]} 19. Qd2 {[%emt 0:01:47]} Bb7 {[%emt 0:06:06]} 20. Qe3 {[%emt 0:03:53]} Qxe3 {[%emt 0:03:42]} 21. fxe3 {[%emt 0:00:07]} Ne5 {[%emt 0:00:00]} 22. Rfd1 {[%emt 0:09:17]} Ng4 {[%emt 0:03:28]} 23. Bf3 {[%emt 0:01:35]} Nxe3 {[%emt 0:00:10]} 24. Re1 {[%emt 0:00:10]} Nf5 {[%emt 0:00:44]} 25. Kg2 {[%emt 0:04:01]} Nd4 {[%emt 0:00:52]} 26. Nxd4 {[%emt 0:01:21]} Bxd4 {[%emt 0:00:08]} 27. e5 {[%emt 0:02:57]} Bxf3+ {[%emt 0:00:43]} 28. Kxf3 {[%emt 0:00:33]} f6 {[%emt 0:00:46]} 29. exf6 {[%emt 0:01:36]} Rxf6+ {[%emt 0:01:06]} 30. Ke4 {[%emt 0:00:45]} Bf2 {[%emt 0:05:01]} 31. Re2 {[%emt 0:01:36]} Rc8 {[%emt 0:17:47]} 32. Rcc2 {[%emt 0:04:44]} Bb6 {[%emt 0:00:51]} 33. Nd1 {[%emt 0:09:26]} Rf5 {[%emt 0:02:01]} 34. d4 {[%emt 0:00:50]} Rc4 {[%emt 0:00:13]} 35. Red2 {[%emt 0:09:17]} d5+ {[%emt 0:00:33]} 36. Ke3 {[%emt 0:00:16]} e5 {[%emt 0:01:39]} 37. Ke2 {[%emt 0:00:18]} Bxd4 {[%emt 0:00:33]} 38. Ne3 {[%emt 0:03:46]} Bxe3 {[%emt 0:00:09]} 39. Rxc4 {[%emt 0:00:07]} bxc4 {[%emt 0:00:14]} 40. Kxe3 {[%emt 0:00:05]} e4 {[%emt 0:00:35]} 41. Kd4 {[%emt 0:00:58]} Rf3 {[%emt 0:00:08]} 42. Ke5 {[%emt 0:01:27]} Rd3 {[%emt 0:00:00]} 43. Rf2 {[%emt 0:01:20]} e3 {[%emt 0:00:38]} 44. Rf7+ {[%emt 0:00:00]} Kg8 {[%emt 0:00:00]} 45. Kf6 {[%emt 0:00:01]} Rd2 {[%emt 0:01:40]} 46. Rg7+ {[%emt 0:05:08]} Kf8 {[%emt 0:01:00]} 47. Rf7+ {[%emt 0:00:35]} Ke8 {[%emt 0:00:15]} 48. Re7+ {[%emt 0:00:00]} Kd8 {[%emt 0:00:33]} 49. Rxe3 {[%emt 0:00:32]} Rxb2 {[%emt 0:00:01]} 50. Ke5 {[%emt 0:00:42]} Rd2 {[%emt 0:00:18]} 51. Kd6 {[%emt 0:02:41]} d4 {[%emt 0:00:46]} 52. Ra3 {[%emt 0:00:00]} c3 {[%emt 0:00:41]} 53. Rxa6 {[%emt 0:00:00]} Ke8 {[%emt 0:01:05]} 54. a4 {[%emt 0:02:21]} c2 {[%emt 0:00:00]} 55. Rc6 {[%emt 0:00:23]} d3 {[%emt 0:00:00]} 56. Rc8+ {[%emt 0:00:36]} Kf7 {[%emt 0:00:00]} 57. Rc7+ {[%emt 0:00:41]} Kf6 {[%emt 0:00:05]} 58. a5 {[%emt 0:00:26]} Rd1 {[%emt 0:00:06]} 59. a6 {[%emt 0:00:14]} c1=Q {[%emt 0:00:08]} 60. a7 {[%emt 0:00:09]} Qxc7+ {[%emt 0:00:19]} 0-1

[Event "Eurasia Open Cup 2019"]
[Site "Ekaterinburg"]
[Date "2019.08.08"]
[Round "8.24"]
[White "Radzhabov, Rodion"]
[Black "Schepetkova, Margarita"]
[Result "1/2-1/2"]
[ECO "A07"]
[WhiteElo "2404"]
[BlackElo "2241"]
[Annotator "NA"]
[PlyCount "81"]
[EventDate "2019.07.31"]
[EventType "swiss"]
[EventCountry "RUS"]
[SourceTitle "playchess.com"]
[Source "ChessBase"]
[SourceQuality "1"]
[TimeControl "5400+30"]

1. Nf3 {[%emt 0:00:00]} d5 {[%emt 0:00:00]} 2. g3 {[%emt 0:00:00]} Nf6 {[%emt 0:00:00]} 3. Bg2 {[%emt 0:00:00]} c6 {[%emt 0:00:06]} 4. O-O {[%emt 0:00:00]} Bg4 {[%emt 0:00:07]} 5. d3 {[%emt 0:00:00]} Nbd7 {[%emt 0:00:13]} 6. Nbd2 {[%emt 0:00:00]} e5 {[%emt 0:00:12]} 7. h3 {[%emt 0:00:00]} Bh5 {[%emt 0:00:33]} 8. e4 {[%emt 0:00:54]} dxe4 {[%emt 0:00:07]} 9. dxe4 {[%emt 0:00:04]} Bc5 {[%emt 0:00:51]} 10. Qe1 {[%emt 0:00:13]} O-O {[%emt 0:00:10]} 11. Nb3 {[%emt 0:02:24]} Bd6 {[%emt 0:06:38]} 12. Nh4 {[%emt 0:02:44]} Re8 {[%emt 0:00:20]} 13. Nf5 {[%emt 0:20:47]} Bf8 {[%emt 0:00:20]} 14. a4 {[%emt 0:01:34]} Qc7 {[%emt 0:04:00]} 15. Bd2 {[%emt 0:18:24]} Rad8 {[%emt 0:08:00]} 16. f3 {[%emt 0:18:09]} Bg6 {[%emt 0:02:19]} 17. Ne3 {[%emt 0:02:09]} Be7 {[%emt 0:01:08]} 18. a5 {[%emt 0:08:55]} Nf8 {[%emt 0:01:03]} 19. Nc4 {[%emt 0:03:31]} Ne6 {[%emt 0:12:00]} 20. Be3 {[%emt 0:01:42]} Nd4 {[%emt 0:05:18]} 21. Nxd4 {[%emt 0:01:42]} exd4 {[%emt 0:00:37]} 22. Bf4 {[%emt 0:00:13]} Qc8 {[%emt 0:00:23]} 23. g4 {[%emt 0:06:26]} Qe6 {[%emt 0:02:49]} 24. Ne5 {[%emt 0:05:17]} Bd6 {[%emt 0:03:35]} 25. Nd3 {[%emt 0:00:08]} Nd7 {[%emt 0:00:52]} 26. Bxd6 {[%emt 0:01:07]} Qxd6 {[%emt 0:00:06]} 27. Qd2 {[%emt 0:01:04]} f6 {[%emt 0:01:07]} 28. b3 {[%emt 0:01:19]} c5 {[%emt 0:01:51]} 29. Rae1 {[%emt 0:01:39]} b5 {[%emt 0:04:42]} 30. axb6 {[%emt 0:00:16]} axb6 {[%emt 0:00:05]} 31. g5 {[%emt 0:03:29]} b5 {[%emt 0:01:26]} 32. gxf6 {[%emt 0:00:23]} Qxf6 {[%emt 0:02:07]} 33. f4 {[%emt 0:00:04]} Bf7 {[%emt 0:04:47]} 34. e5 {[%emt 0:00:34]} Qb6 {[%emt 0:00:26]} 35. f5 {[%emt 0:01:12]} c4 {[%emt 0:00:19]} 36. bxc4 {[%emt 0:00:52]} bxc4 {[%emt 0:00:05]} 37. e6 {[%emt 0:00:00]} cxd3 {[%emt 0:00:49]} 38. cxd3 {[%emt 0:00:49]} Nf6 {[%emt 0:05:08]} 39. exf7+ {[%emt 0:00:00]} Kxf7 {[%emt 0:00:03]} 40. Qa2+ {[%emt 0:00:09]} Kf8 {[%emt 0:00:11]} 41. Re6 {[%emt 0:01:14]} 1/2-1/2

[Event "Eurasia Open Cup 2019"]
[Site "Ekaterinburg"]
[Date "2019.08.08"]
[Round "8.25"]
[White "Novikov, Evgenij"]
[Black "Popov, Mikhail"]
[Result "1/2-1/2"]
[ECO "E94"]
[WhiteElo "2164"]
[BlackElo "2397"]
[Annotator "NA"]
[PlyCount "81"]
[EventDate "2019.07.31"]
[EventType "swiss"]
[EventCountry "RUS"]
[SourceTitle "playchess.com"]
[Source "ChessBase"]
[SourceQuality "1"]
[TimeControl "5400+30"]

1. d4 {[%emt 0:00:00]} g6 {[%emt 0:04:36]} 2. Nf3 {[%emt 0:00:59]} Bg7 {[%emt 0:00:36]} 3. c4 {[%emt 0:00:10]} Nf6 {[%emt 0:00:23]} 4. Nc3 {[%emt 0:00:05]} O-O {[%emt 0:00:26]} 5. e4 {[%emt 0:00:06]} d6 {[%emt 0:00:06]} 6. Be2 {[%emt 0:00:44]} Na6 {[%emt 0:00:21]} 7. O-O {[%emt 0:08:29]} e5 {[%emt 0:00:15]} 8. dxe5 {[%emt 0:00:33]} dxe5 {[%emt 0:00:07]} 9. Qxd8 {[%emt 0:00:02]} Rxd8 {[%emt 0:00:06]} 10. Bg5 {[%emt 0:00:09]} Re8 {[%emt 0:05:12]} 11. Ne1 {[%emt 0:01:44]} Nc5 {[%emt 0:04:15]} 12. f3 {[%emt 0:00:14]} Ne6 {[%emt 0:01:32]} 13. Be3 {[%emt 0:00:05]} c6 {[%emt 0:02:25]} 14. Nc2 {[%emt 0:02:59]} Nf4 {[%emt 0:10:06]} 15. Rfd1 {[%emt 0:03:06]} Nxe2+ {[%emt 0:02:19]} 16. Nxe2 {[%emt 0:00:04]} Be6 {[%emt 0:00:00]} 17. b3 {[%emt 0:00:28]} Nh5 {[%emt 0:02:45]} 18. g4 {[%emt 0:09:12]} Nf4 {[%emt 0:06:09]} 19. Nxf4 {[%emt 0:01:01]} exf4 {[%emt 0:00:00]} 20. Bd4 {[%emt 0:00:00]} f6 {[%emt 0:00:34]} 21. Ne1 {[%emt 0:09:41]} Red8 {[%emt 0:16:54]} 22. Bc3 {[%emt 0:01:10]} b6 {[%emt 0:06:46]} 23. Nd3 {[%emt 0:00:43]} g5 {[%emt 0:01:14]} 24. Nb4 {[%emt 0:01:09]} Bd7 {[%emt 0:03:06]} 25. Rd2 {[%emt 0:16:58]} Be8 {[%emt 0:04:16]} 26. Rad1 {[%emt 0:00:36]} Rxd2 {[%emt 0:00:07]} 27. Rxd2 {[%emt 0:00:03]} a5 {[%emt 0:04:38]} 28. Nc2 {[%emt 0:00:00]} h5 {[%emt 0:01:03]} 29. h3 {[%emt 0:00:23]} hxg4 {[%emt 0:00:28]} 30. hxg4 {[%emt 0:00:00]} Kf7 {[%emt 0:05:55]} 31. Kf1 {[%emt 0:00:11]} b5 {[%emt 0:03:16]} 32. Nd4 {[%emt 0:02:42]} b4 {[%emt 0:01:06]} 33. Bb2 {[%emt 0:00:05]} Rd8 {[%emt 0:00:00]} 34. Bc1 {[%emt 0:01:34]} Bf8 {[%emt 0:02:43]} 35. Nf5 {[%emt 0:01:17]} Rxd2 {[%emt 0:00:28]} 36. Bxd2 {[%emt 0:00:33]} c5 {[%emt 0:00:21]} 37. Ke2 {[%emt 0:00:00]} a4 {[%emt 0:00:44]} 38. Kd3 {[%emt 0:00:40]} a3 {[%emt 0:00:32]} 39. Be1 {[%emt 0:00:00]} Ke6 {[%emt 0:01:07]} 40. Bf2 {[%emt 0:00:34]} Bc6 {[%emt 0:01:07]} 41. Bg1 {[%emt 0:00:34]} 1/2-1/2

[Event "Eurasia Open Cup 2019"]
[Site "Ekaterinburg"]
[Date "2019.08.08"]
[Round "8.26"]
[White "Kotlyar, Kirill"]
[Black "Averyanov, Grigori"]
[Result "1-0"]
[ECO "E11"]
[WhiteElo "2387"]
[BlackElo "2131"]
[Annotator "NA"]
[PlyCount "103"]
[EventDate "2019.07.31"]
[EventType "swiss"]
[EventCountry "RUS"]
[SourceTitle "playchess.com"]
[Source "ChessBase"]
[SourceQuality "1"]
[TimeControl "5400+30"]

1. Nf3 {[%emt 0:05:33]} Nf6 {[%emt 0:00:00]} 2. d4 {[%emt 0:00:06]} e6 {[%emt 0:00:00]} 3. c4 {[%emt 0:00:30]} Bb4+ {[%emt 0:00:00]} 4. Nbd2 {[%emt 0:01:01]} d5 {[%emt 0:00:00]} 5. Qa4+ {[%emt 0:03:43]} Nc6 {[%emt 0:00:02]} 6. Ne5 {[%emt 0:03:05]} Bd7 {[%emt 0:08:39]} 7. Nxd7 {[%emt 0:11:51]} Qxd7 {[%emt 0:01:01]} 8. e3 {[%emt 0:00:38]} Ne4 {[%emt 0:04:13]} 9. Qc2 {[%emt 0:03:00]} O-O-O {[%emt 0:13:11]} 10. Bd3 {[%emt 0:29:02]} Bxd2+ {[%emt 0:00:39]} 11. Bxd2 {[%emt 0:00:40]} Nxd2 {[%emt 0:00:02]} 12. Qxd2 {[%emt 0:00:39]} e5 {[%emt 0:01:41]} 13. O-O {[%emt 0:00:30]} exd4 {[%emt 0:01:56]} 14. exd4 {[%emt 0:00:34]} dxc4 {[%emt 0:00:28]} 15. Bxc4 {[%emt 0:00:05]} Nxd4 {[%emt 0:01:14]} 16. Qa5 {[%emt 0:01:58]} Kb8 {[%emt 0:00:32]} 17. Rfd1 {[%emt 0:00:40]} Qg4 {[%emt 0:01:56]} 18. Rdc1 {[%emt 0:02:15]} Nc2 {[%emt 0:16:14]} 19. Bd5 {[%emt 0:08:18]} Qf5 {[%emt 0:08:59]} 20. Qc3 {[%emt 0:00:07]} Rxd5 {[%emt 0:03:59]} 21. Rxc2 {[%emt 0:00:17]} Qd7 {[%emt 0:00:13]} 22. Re2 {[%emt 0:01:20]} f6 {[%emt 0:02:40]} 23. Rae1 {[%emt 0:00:37]} Rd1 {[%emt 0:00:17]} 24. Rxd1 {[%emt 0:00:00]} Qxd1+ {[%emt 0:00:32]} 25. Re1 {[%emt 0:00:00]} Qd7 {[%emt 0:00:00]} 26. Qe3 {[%emt 0:00:41]} Rd8 {[%emt 0:00:25]} 27. h4 {[%emt 0:00:40]} a6 {[%emt 0:00:14]} 28. Qe7 {[%emt 0:00:15]} Qd2 {[%emt 0:04:34]} 29. Re2 {[%emt 0:01:31]} Qc1+ {[%emt 0:00:38]} 30. Kh2 {[%emt 0:00:31]} Rd4 {[%emt 0:02:58]} 31. g3 {[%emt 0:00:14]} Rd1 {[%emt 0:02:22]} 32. Qxg7 {[%emt 0:01:46]} Rh1+ {[%emt 0:01:39]} 33. Kg2 {[%emt 0:00:05]} Qc6+ {[%emt 0:00:02]} 34. Re4 {[%emt 0:03:20]} Rxh4 {[%emt 0:07:47]} 35. gxh4 {[%emt 0:00:17]} Qxe4+ {[%emt 0:00:07]} 36. Kg3 {[%emt 0:00:12]} Qg6+ {[%emt 0:00:55]} 37. Qxg6 {[%emt 0:00:07]} hxg6 {[%emt 0:00:30]} 38. Kg4 {[%emt 0:00:49]} Kc8 {[%emt 0:00:00]} 39. f4 {[%emt 0:00:39]} Kd7 {[%emt 0:00:05]} 40. f5 {[%emt 0:00:00]} g5 {[%emt 0:04:23]} 41. hxg5 {[%emt 0:00:14]} fxg5 {[%emt 0:00:01]} 42. Kxg5 {[%emt 0:00:07]} Ke7 {[%emt 0:00:02]} 43. Kg6 {[%emt 0:02:57]} Kf8 {[%emt 0:00:31]} 44. a4 {[%emt 0:03:20]} b6 {[%emt 0:00:06]} 45. Kf6 {[%emt 0:01:03]} c5 {[%emt 0:00:07]} 46. Ke6 {[%emt 0:00:10]} b5 {[%emt 0:00:03]} 47. axb5 {[%emt 0:00:38]} axb5 {[%emt 0:00:30]} 48. Kd5 {[%emt 0:00:00]} c4 {[%emt 0:00:00]} 49. Kc5 {[%emt 0:00:00]} Ke7 {[%emt 0:00:00]} 50. Kxb5 {[%emt 0:00:00]} Kf6 {[%emt 0:00:11]} 51. Kxc4 {[%emt 0:00:00]} Kxf5 {[%emt 0:00:02]} 52. Kd5 {[%emt 0:00:01]} 1-0